fUST/lending_fUST_20250811
["ID","MTS","AMOUNT","RATE_DAILY","PERIOD"]
[378484912,1754884236499,-500.0,0.00020773,2]
[378484913,1754884236509,-500.88808085,0.00020773,2]
[378484914,1754884236519,-501.40759492,0.00020773,2]
[378484915,1754884236528,-500.0,0.00020773,2]
[378484916,1754884236538,-628.32778718,0.00020773,2]
[378484917,1754884236548,-500.0,0.00020773,2]
[378484918,1754884236558,-505.09810618,0.00020773,2]
[378484919,1754884236567,-500.0,0.00020773,2]
[378484920,1754884236579,-462.13562624,0.00020773,2]
[378484921,1754884236589,-552.82830389,0.00020773,2]
[378484922,1754884236598,-500.0,0.00020773,2]
[378484923,1754884236608,-500.0,0.00020773,2]
[378484924,1754884236618,-364.43862818,0.00020773,2]
[378484925,1754884236628,-500.0,0.00020773,2]
[378484926,1754884236797,-500.0,0.00020773,2]
[378484927,1754884236810,-500.0,0.00020773,2]
[378484928,1754884236822,-500.0,0.00020773,2]
[378484929,1754884236832,-500.0,0.00020773,2]
[378484930,1754884236841,-500.0,0.00020773,2]
[378484931,1754884236852,-2059.47073095,0.00020773,2]
[378484932,1754884236866,-2059.47073095,0.00020773,2]
[378484933,1754884236875,-2059.47073095,0.00020773,2]
[378484934,1754884236885,-2059.47073095,0.00020773,2]
[378484935,1754884236898,-2059.47073095,0.00020773,2]
[378484936,1754884236908,-367.11087948,0.00020773,2]
[378484937,1754884236918,-2059.47073095,0.00020773,2]
[378484938,1754884236935,-2059.47073095,0.00020773,2]
[378484939,1754884236944,-2059.47073095,0.00020773,2]
[378484940,1754884236953,-689.05970443,0.00020773,2]
[378484941,1754884236969,-992.65844202,0.00020773,2]
[378484942,1754884237493,450.0,0.00019953,2]
[378484943,1754884237600,460.0,0.00019953,2]
[378485006,1754884238674,-717.01,0.00019954,2]
[378485008,1754884238684,-460.0,0.00020227,2]
[378485010,1754884238694,-220.74513888,0.00020227,2]
[378485011,1754884238704,-717.01,0.00020228,2]
[378485014,1754884238714,-717.01,0.00020502,2]
[378485016,1754884238723,-377.7525845,0.00020773,2]
[378485018,1754884238733,-2059.47073095,0.00020773,2]
[378485020,1754884238743,-2059.47073095,0.00020773,2]
[378485022,1754884238752,-2059.47073095,0.00020773,2]
[378485025,1754884238761,-2059.47073095,0.00020773,2]
[378485028,1754884238771,-2059.47073095,0.00020773,2]
[378485031,1754884238780,-2059.47073095,0.00020773,2]
[378485033,1754884238791,-2059.47073095,0.00020773,2]
[378485034,1754884238801,-2059.47073095,0.00020773,2]
[378485036,1754884238810,-2059.47073095,0.00020773,2]
[378485039,1754884238819,-2059.47073095,0.00020773,2]
[378485040,1754884238830,-2059.47073095,0.00020773,2]
[378485042,1754884238839,-500.0,0.00020774,2]
[378485045,1754884238849,-500.0,0.00020774,2]
[378485046,1754884238859,-1845.49,0.00020774,2]
[378485048,1754884238869,-1845.49,0.00020774,2]
[378485050,1754884238878,-500.33,0.00020775,2]
[378485052,1754884238888,-738.17,0.00020775,2]
[378485054,1754884238901,-460.0,0.00020775,2]
[378485057,1754884238910,-460.0,0.00020775,2]
[378485059,1754884238919,-460.0,0.00020775,2]
[378485060,1754884238929,-849.96,0.00020775,2]
[378485062,1754884238939,-460.0,0.00020775,2]
[378485064,1754884238948,-484.81,0.00020775,2]
[378485066,1754884238957,-460.0,0.00020775,2]
[378485068,1754884238966,-460.0,0.00020775,2]
[378485070,1754884238976,-460.0,0.00020775,2]
[378485072,1754884238985,-460.0,0.00020775,2]
[378485074,1754884238995,-460.0,0.00020775,2]
[378485076,1754884239004,-460.0,0.00020775,2]
[378485078,1754884239013,-1132.78,0.00020775,2]
[378485080,1754884239022,-460.0,0.00020775,2]
[378485082,1754884239031,-460.0,0.00020775,2]
[378485084,1754884239040,-460.0,0.00020775,2]
[378485086,1754884239050,-460.0,0.00020775,2]
[378485088,1754884239059,-460.0,0.00020775,2]
[378485090,1754884239068,-3830.86,0.00020775,2]
[378485092,1754884239078,-460.0,0.00020775,2]
[378485094,1754884239087,-460.0,0.00020775,2]
[378485096,1754884239096,-460.0,0.00020775,2]
[378485098,1754884239105,-3884.32,0.00020775,2]
[378485099,1754884239114,-464.05828829,0.00020775,2]
[378485100,1754884239123,-460.0,0.00020775,2]
[378485101,1754884239133,-460.0,0.00020775,2]
[378485102,1754884239142,-1310.85,0.00020775,2]
[378485103,1754884239152,-460.0,0.00020775,2]
[378485104,1754884239161,-460.0,0.00020775,2]
[378485105,1754884239170,-460.0,0.00020775,2]
[378485106,1754884239181,-1843.28,0.00020775,2]
[378485107,1754884239191,-460.0,0.00020775,2]
[378485108,1754884239205,-460.0,0.00020775,2]
[378485109,1754884239214,-1091.89,0.00020775,2]
[378485110,1754884239224,-1175.19,0.00020775,2]
[378485111,1754884239234,-460.0,0.00020775,2]
[378485112,1754884239244,-2682.36,0.00020775,2]
[378485113,1754884239254,-460.0,0.00020775,2]
[378485114,1754884239263,-460.0,0.00020775,2]
[378485115,1754884239272,-460.0,0.00020775,2]
[378485116,1754884239282,-491.24031895,0.00020775,2]
[378485117,1754884239292,-571.72,0.00020775,2]
[378485118,1754884239301,-471.61548007,0.00020775,2]
[378485119,1754884239311,-592.54,0.00020775,2]
[378485120,1754884239320,-460.0,0.00020775,2]
[378485121,1754884239330,-2876.63,0.00020775,2]
[378485122,1754884239339,-460.0,0.00020775,2]
[378485123,1754884239353,-460.0,0.00020775,2]
[378485124,1754884239362,-460.0,0.00020775,2]
[378485125,1754884239371,-838.66,0.00020775,2]
[378485126,1754884239381,-460.0,0.00020775,2]
[378485127,1754884239390,-460.0,0.00020775,2]
[378485128,1754884239400,-2273.65,0.00020775,2]
[378485129,1754884239410,-760.55,0.00020775,2]
[378485130,1754884239419,-556.6650014,0.00020775,2]
[378485131,1754884239429,-599.90317827,0.00020775,2]
[378485132,1754884239439,-460.0,0.00020775,2]
[378485133,1754884239448,-2921.65,0.00020775,2]
[378485134,1754884239458,-342.86141715,0.00020775,2]
[378485135,1754884239468,-1845.49,0.00020775,2]
[378485136,1754884239478,-702.24,0.00020775,2]
[378485137,1754884239487,-460.0,0.00020775,2]
[378485138,1754884239497,-460.0,0.00020775,2]
[378485139,1754884239507,-460.0,0.00020775,2]
[378485140,1754884239517,-460.0,0.00020775,2]
[378485141,1754884239526,-460.0,0.00020775,2]
[378485142,1754884239536,-460.0,0.00020775,2]
[378485143,1754884239545,-779.19,0.00020775,2]
[378485144,1754884239555,-460.0,0.00020775,2]
[378485145,1754884239564,-460.0,0.00020775,2]
[378485146,1754884239575,-460.0,0.00020775,2]
[378485147,1754884239585,-1407.45,0.00020775,2]
[378485148,1754884239596,-460.0,0.00020775,2]
[378485149,1754884239605,-312.58425432,0.00020775,2]
[378485150,1754884239615,-460.0,0.00020775,2]
[378485151,1754884239625,-460.0,0.00020775,2]
[378485152,1754884239634,-460.0,0.00020775,2]
[378485153,1754884239643,-627.35,0.00020775,2]
[378485154,1754884239653,-460.0,0.00020775,2]
[378485155,1754884239662,-460.0,0.00020775,2]
[378485156,1754884239672,-460.0,0.00020775,2]
[378485157,1754884239681,-460.0,0.00020775,2]
[378485158,1754884239690,-460.0,0.00020775,2]
[378485159,1754884239700,-2015.72,0.00020776,2]
[378485160,1754884239709,-1893.28,0.00020776,2]
[378485161,1754884239719,-1250.19,0.00020776,2]
[378485162,1754884239728,-1213.34,0.00020776,2]
[378485163,1754884239737,-500.0,0.00020776,2]
[378485164,1754884239747,-460.0,0.00020776,2]
[378485165,1754884239756,-460.0,0.00020776,2]
[378485166,1754884239766,-2298.91,0.00020776,2]
[378485167,1754884239775,-460.0,0.00020776,2]
[378485168,1754884239784,-681.91,0.00020776,2]
[378485169,1754884239794,-2224.76,0.00020776,2]
[378485170,1754884239804,-1845.49,0.00020776,2]
[378485171,1754884239813,-1568.72,0.00020776,2]
[378485172,1754884239823,-717.01,0.00020776,2]
[378485173,1754884239833,-2402.6280151,0.00020881,2]
[378485175,1754884239842,-446.66,0.00020882,2]
[378485176,1754884239852,-500.0,0.00020915,2]
[378485177,1754884239862,-500.0,0.00020915,2]
[378485178,1754884239871,-500.0,0.00020915,2]
[378485179,1754884239881,-500.0,0.00020932,2]
[378485181,1754884239892,-500.0,0.00020932,2]
[378485183,1754884239903,-500.0,0.00020932,2]
[378485184,1754884239912,-512.65551404,0.00020938,2]
[378485185,1754884239922,-500.0,0.00020938,2]
[378485186,1754884239932,-10000.0,0.00020981,2]
[378485187,1754884239942,-500.0,0.00020983,2]
[378485188,1754884239951,-500.0,0.00020989,2]
[378485189,1754884239960,-500.0,0.00021,2]
[378485190,1754884239970,-300.0,0.00021017,2]
[378485191,1754884239981,-500.0,0.00021044,2]
[378485192,1754884239990,-500.0,0.00021044,2]
[378485193,1754884240000,-500.0,0.00021048,2]
[378485194,1754884240010,-184.34195334,0.00021048,2]
[378485195,1754884240020,-1845.49,0.00021048,2]
[378485196,1754884240029,-1845.49,0.00021048,2]
[378485197,1754884240039,-500.33,0.00021049,2]
[378485198,1754884240048,-738.17,0.00021049,2]
[378485199,1754884240057,-460.0,0.00021049,2]
[378485200,1754884240067,-460.0,0.00021049,2]
[378485201,1754884240077,-460.0,0.00021049,2]
[378485202,1754884240086,-849.96,0.00021049,2]
[378485203,1754884240127,-460.0,0.00021049,2]
[378485204,1754884240137,-484.81,0.00021049,2]
[378485205,1754884240147,-460.0,0.00021049,2]
[378485206,1754884240156,-460.0,0.00021049,2]
[378485207,1754884240166,-460.0,0.00021049,2]
[378485208,1754884240175,-460.0,0.00021049,2]
[378485209,1754884240184,-460.0,0.00021049,2]
[378485210,1754884240194,-1132.78,0.00021049,2]
[378485211,1754884240203,-460.0,0.00021049,2]
[378485212,1754884240212,-460.0,0.00021049,2]
[378485213,1754884240222,-460.0,0.00021049,2]
[378485214,1754884240231,-460.0,0.00021049,2]
[378485215,1754884240241,-460.0,0.00021049,2]
[378485216,1754884240250,-3830.86,0.00021049,2]
[378485217,1754884240259,-460.0,0.00021049,2]
[378485218,1754884240268,-460.0,0.00021049,2]
[378485219,1754884240277,-460.0,0.00021049,2]
[378485220,1754884240286,-3884.32,0.00021049,2]
[378485221,1754884240296,-475.52,0.00021049,2]
[378485222,1754884240305,-460.0,0.00021049,2]
[378485223,1754884240314,-1310.85,0.00021049,2]
[378485224,1754884240324,-460.0,0.00021049,2]
[378485225,1754884240334,-460.0,0.00021049,2]
[378485226,1754884240344,-460.0,0.00021049,2]
[378485227,1754884240353,-1843.28,0.00021049,2]
[378485228,1754884240363,-460.0,0.00021049,2]
[378485229,1754884240372,-460.0,0.00021049,2]
[378485230,1754884240382,-1091.89,0.00021049,2]
[378485231,1754884240391,-1175.19,0.00021049,2]
[378485232,1754884240402,-460.0,0.00021049,2]
[378485233,1754884240411,-2682.36,0.00021049,2]
[378485234,1754884240421,-460.0,0.00021049,2]
[378485235,1754884240431,-460.0,0.00021049,2]
[378485236,1754884240440,-460.0,0.00021049,2]
[378485237,1754884240449,-571.72,0.00021049,2]
[378485238,1754884240459,-592.54,0.00021049,2]
[378485239,1754884240468,-460.0,0.00021049,2]
[378485240,1754884240478,-2876.63,0.00021049,2]
[378485241,1754884240488,-460.0,0.00021049,2]
[378485242,1754884240497,-460.0,0.00021049,2]
[378485243,1754884240507,-838.66,0.00021049,2]
[378485244,1754884240516,-460.0,0.00021049,2]
[378485245,1754884240525,-460.0,0.00021049,2]
[378485246,1754884240535,-2273.65,0.00021049,2]
[378485247,1754884240545,-760.55,0.00021049,2]
[378485248,1754884240555,-460.0,0.00021049,2]
[378485249,1754884240565,-2921.65,0.00021049,2]
[378485250,1754884240575,-702.24,0.00021049,2]
[378485251,1754884240585,-460.0,0.00021049,2]
[378485252,1754884240595,-460.0,0.00021049,2]
[378485254,1754884240605,-460.0,0.00021049,2]
[378485256,1754884240614,-460.0,0.00021049,2]
[378485258,1754884240625,-460.0,0.00021049,2]
[378485260,1754884240634,-460.0,0.00021049,2]
[378485261,1754884240643,-779.19,0.00021049,2]
[378485263,1754884240653,-460.0,0.00021049,2]
[378485265,1754884240662,-460.0,0.00021049,2]
[378485267,1754884240671,-460.0,0.00021049,2]
[378485269,1754884240681,-1407.45,0.00021049,2]
[378485271,1754884240690,-460.0,0.00021049,2]
[378485273,1754884240699,-460.0,0.00021049,2]
[378485275,1754884240711,-460.0,0.00021049,2]
[378485277,1754884240720,-627.35,0.00021049,2]
[378485279,1754884240729,-460.0,0.00021049,2]
[378485281,1754884240739,-460.0,0.00021049,2]
[378485305,1754884240959,-460.0,0.00021049,2]
[378485307,1754884240970,-460.0,0.00021049,2]
[378485309,1754884240979,-460.0,0.00021049,2]
[378485311,1754884240989,-2015.72,0.0002105,2]
[378485313,1754884240998,-151.0,0.0002105,2]
[378485315,1754884241007,-1893.28,0.0002105,2]
[378485317,1754884241016,-1250.19,0.0002105,2]
[378485319,1754884241025,-1213.34,0.0002105,2]
[378485320,1754884241036,-460.0,0.0002105,2]
[378485323,1754884241046,-460.0,0.0002105,2]
[378485325,1754884241056,-2298.91,0.0002105,2]
[378485327,1754884241066,-681.91,0.0002105,2]
[378485329,1754884241075,-151.0,0.0002105,2]
[378485331,1754884241086,-198.0,0.0002105,2]
[378485333,1754884241095,-2224.76,0.0002105,2]
[378485335,1754884241106,-1845.49,0.0002105,2]
[378485337,1754884241116,-500.0,0.0002105,2]
[378485339,1754884241125,-151.0,0.0002105,2]
[378485340,1754884241134,-151.0,0.0002105,2]
[378485343,1754884241144,-1568.72,0.0002105,2]
[378485345,1754884241153,-151.0,0.0002105,2]
[378485347,1754884241163,-151.0,0.0002105,2]
[378485349,1754884241172,-500.0,0.0002105,2]
[378485351,1754884241182,-500.0,0.0002105,2]
[378485353,1754884241191,-151.0,0.0002105,2]
[378485355,1754884241200,-717.01,0.0002105,2]
[378485357,1754884241209,-1638.72414142,0.00021109,2]
[378485359,1754884241219,-500.0,0.00021139,2]
[378485361,1754884241228,-500.0,0.00021139,2]
[378485363,1754884241237,-502.12177877,0.00021141,2]
[378485364,1754884241246,-417.15472785,0.00021209,2]
[378485367,1754884241256,-160.0,0.00021209,2]
[378485369,1754884241265,-12671.21867243,0.0002122,2]
[378485371,1754884241274,-160.0,0.0002122,2]
[378485372,1754884241284,-160.0,0.0002122,2]
[378485375,1754884241294,-160.0,0.0002122,2]
[378485377,1754884241303,-160.0,0.0002122,2]
[378485379,1754884241313,-160.0,0.0002122,2]
[378485381,1754884241324,-231.9940742,0.0002122,2]
[378485383,1754884241336,-215.4905783,0.0002122,2]
[378485385,1754884241346,-160.0,0.0002122,2]
[378485387,1754884241356,-216.68257536,0.0002122,2]
[378485389,1754884241366,-843.18994796,0.0002122,2]
[378485391,1754884241375,-160.0,0.0002122,2]
[378485393,1754884241386,-461.69158338,0.0002122,2]
[378485395,1754884241396,-160.0,0.0002122,2]
[378485397,1754884241405,-527.9539256,0.0002122,2]
[378485399,1754884241415,-160.0,0.00021224,2]
[378485401,1754884241424,-500.88918197,0.00021264,2]
[378485403,1754884241433,-1000.0,0.00021264,2]
[378485405,1754884241442,-616.86229207,0.00021264,2]
[378485407,1754884241452,-1845.49,0.00021265,2]
[378485409,1754884241462,-2067.58280295,0.00021295,2]
[378485411,1754884241471,-500.0,0.00021305,2]
[378485413,1754884241480,-1013.04516821,0.00021321,2]
[378485415,1754884241490,-1000.0,0.00021321,2]
[378485417,1754884241500,-1000.0,0.00021321,2]
[378485419,1754884241509,-1000.0,0.00021321,2]
[378485421,1754884241518,-501.96065926,0.00021321,2]
[378485423,1754884241528,-247.43580577,0.00021321,2]
[378485425,1754884241537,-1000.0,0.00021321,2]
[378485427,1754884241546,-500.0,0.00021321,2]
[378485429,1754884241555,-1000.0,0.00021321,2]
[378485431,1754884241565,-500.0,0.00021321,2]
[378485433,1754884241574,-1000.0,0.00021321,2]
[378485435,1754884241583,-1845.49,0.00021322,2]
[378485437,1754884241593,-1845.49,0.00021322,2]
[378485439,1754884241604,-500.33,0.00021323,2]
[378485441,1754884241614,-738.17,0.00021323,2]
[378485443,1754884241624,-487.38691856,0.00021323,2]
[378485445,1754884241635,-460.0,0.00021323,2]
[378485447,1754884241646,-460.0,0.00021323,2]
[378485449,1754884241656,-849.96,0.00021323,2]
[378485451,1754884241666,-460.0,0.00021323,2]
[378485453,1754884241676,-484.81,0.00021323,2]
[378485455,1754884241685,-460.0,0.00021323,2]
[378485457,1754884241695,-460.0,0.00021323,2]
[378485459,1754884241704,-460.0,0.00021323,2]
[378485461,1754884241714,-460.0,0.00021323,2]
[378485463,1754884241724,-460.0,0.00021323,2]
[378485465,1754884241734,-1132.78,0.00021323,2]
[378485467,1754884241744,-460.0,0.00021323,2]
[378485469,1754884241754,-460.0,0.00021323,2]
[378485471,1754884241764,-460.0,0.00021323,2]
[378485473,1754884241774,-460.0,0.00021323,2]
[378485475,1754884241783,-460.0,0.00021323,2]
[378485477,1754884241793,-3830.86,0.00021323,2]
[378485479,1754884241803,-460.0,0.00021323,2]
[378485481,1754884241812,-210.83525927,0.00021323,2]
[378485484,1754884241824,-460.0,0.00021323,2]
[378485486,1754884241834,-3884.32,0.00021323,2]
[378485488,1754884241844,-287.768669,0.00021323,2]
[378485490,1754884241853,-1310.85,0.00021323,2]
[378485492,1754884241863,-460.0,0.00021323,2]
[378485494,1754884241872,-460.0,0.00021323,2]
[378485496,1754884241881,-460.0,0.00021323,2]
[378485498,1754884241895,-1843.28,0.00021323,2]
[378485500,1754884241905,-460.0,0.00021323,2]
[378485502,1754884241915,-460.0,0.00021323,2]
[378485504,1754884241924,-1091.89,0.00021323,2]
[378485506,1754884241935,-1175.19,0.00021323,2]
[378485508,1754884241944,-2682.36,0.00021323,2]
[378485510,1754884241954,-461.62,0.00021323,2]
[378485512,1754884241964,-460.0,0.00021323,2]
[378485514,1754884241974,-460.0,0.00021323,2]
[378485516,1754884241984,-571.72,0.00021323,2]
[378485518,1754884241993,-592.54,0.00021323,2]
[378485520,1754884242003,-460.0,0.00021323,2]
[378485522,1754884242013,-2876.63,0.00021323,2]
[378485524,1754884242022,-460.0,0.00021323,2]
[378485526,1754884242032,-460.0,0.00021323,2]
[378485528,1754884242041,-838.66,0.00021323,2]
[378485530,1754884242051,-460.0,0.00021323,2]
[378485532,1754884242061,-460.0,0.00021323,2]
[378485534,1754884242071,-2273.65,0.00021323,2]
[378485536,1754884242082,-760.55,0.00021323,2]
[378485539,1754884242091,-460.0,0.00021323,2]
[378485541,1754884242101,-2921.65,0.00021323,2]
[378485543,1754884242111,-702.24,0.00021323,2]
[378485545,1754884242120,-460.0,0.00021323,2]
[378485546,1754884242130,-460.0,0.00021323,2]
[378485548,1754884242139,-460.0,0.00021323,2]
[378485550,1754884242149,-460.0,0.00021323,2]
[378485553,1754884242159,-460.0,0.00021323,2]
[378485555,1754884242169,-779.19,0.00021323,2]
[378485557,1754884242179,-460.0,0.00021323,2]
[378485558,1754884242188,-460.0,0.00021323,2]
[378485561,1754884242198,-460.0,0.00021323,2]
[378485563,1754884242208,-1407.45,0.00021323,2]
[378485565,1754884242217,-460.0,0.00021323,2]
[378485567,1754884242228,-460.0,0.00021323,2]
[378485569,1754884242237,-460.0,0.00021323,2]
[378485571,1754884242247,-627.35,0.00021323,2]
[378485573,1754884242256,-460.0,0.00021323,2]
[378485575,1754884242266,-460.0,0.00021323,2]
[378485577,1754884242275,-460.0,0.00021323,2]
[378485579,1754884242285,-460.0,0.00021323,2]
[378485581,1754884242294,-154.17513545,0.00021324,2]
[378485583,1754884242304,-151.0,0.00021324,2]
[378485585,1754884242313,-500.0,0.00021324,2]
[378485587,1754884242323,-151.0,0.00021324,2]
[378485589,1754884242332,-500.0,0.00021324,2]
[378485591,1754884242343,-500.0,0.00021324,2]
[378485593,1754884242352,-151.0,0.00021324,2]
[378485595,1754884242362,-224.39915183,0.00021324,2]
[378485597,1754884242371,-151.0,0.00021324,2]
[378485599,1754884242381,-198.0,0.00021324,2]
[378485601,1754884242390,-151.0,0.00021324,2]
[378485603,1754884242400,-2015.72,0.00021324,2]
[378485605,1754884242412,-1893.28,0.00021324,2]
[378485607,1754884242422,-1250.19,0.00021324,2]
[378485609,1754884242432,-1213.34,0.00021324,2]
[378485611,1754884242441,-460.0,0.00021324,2]
[378485613,1754884242451,-460.0,0.00021324,2]
[378485615,1754884242460,-2298.91,0.00021324,2]
[378485617,1754884242470,-681.91,0.00021324,2]
[378485619,1754884242479,-2224.76,0.00021324,2]
[378485621,1754884242489,-1845.49,0.00021324,2]
[378485623,1754884242499,-1568.72,0.00021324,2]
[378485625,1754884242508,-717.01,0.00021324,2]
[378485627,1754884242517,-2402.6280151,0.0002136,2]
[378485629,1754884242527,-1000.0,0.00021463,2]
[378485631,1754884242536,-1000.0,0.00021463,2]
[378485633,1754884242546,-1000.0,0.00021463,2]
[378485635,1754884242555,-501.14541372,0.0002148,2]
[378485637,1754884242566,-504.93492331,0.0002148,2]
[378485639,1754884242575,-1000.0,0.00021486,2]
[378485641,1754884242585,-233.24971992,0.00021486,2]
[378485643,1754884242594,-10024.56855243,0.00021498,2]
[378485645,1754884242603,-479.00780484,0.00021502,2]
[378485647,1754884242614,-865.9,0.00021502,2]
[378485649,1754884242623,-160.0,0.00021526,2]
[378485651,1754884242633,-1000.0,0.00021531,2]
[378485653,1754884242643,-501.33316,0.00021548,2]
[378485655,1754884242652,-1845.49,0.00021587,2]
[378485657,1754884242662,-501.99732496,0.00021592,2]
[378485659,1754884242671,-1845.49,0.00021596,2]
[378485661,1754884242680,-1845.49,0.00021596,2]
[378485663,1754884242690,-500.33,0.00021597,2]
[378485665,1754884242699,-738.17,0.00021597,2]
[378485667,1754884242709,-460.0,0.00021597,2]
[378485669,1754884242719,-394.24133916,0.00021597,2]
[378485671,1754884242728,-849.96,0.00021597,2]
[378485673,1754884242737,-460.0,0.00021597,2]
[378485675,1754884242747,-484.81,0.00021597,2]
[378485677,1754884242756,-460.0,0.00021597,2]
[378485679,1754884242766,-460.0,0.00021597,2]
[378485680,1754884242775,-460.0,0.00021597,2]
[378485683,1754884242785,-158.94834413,0.00021597,2]
[378485684,1754884242794,-460.0,0.00021597,2]
[378485686,1754884242804,-1132.78,0.00021597,2]
[378485688,1754884242813,-460.0,0.00021597,2]
[378485690,1754884242822,-460.0,0.00021597,2]
[378485692,1754884242832,-460.0,0.00021597,2]
[378485694,1754884242842,-3830.86,0.00021597,2]
[378485696,1754884242852,-460.0,0.00021597,2]
[378485698,1754884242861,-460.0,0.00021597,2]
[378485700,1754884242870,-3884.32,0.00021597,2]
[378485702,1754884242880,-1310.85,0.00021597,2]
[378485704,1754884242890,-460.0,0.00021597,2]
[378485706,1754884242902,-460.0,0.00021597,2]
[378485708,1754884242911,-460.0,0.00021597,2]
[378485710,1754884242921,-1843.28,0.00021597,2]
[378485713,1754884242930,-460.0,0.00021597,2]
[378485715,1754884242939,-460.0,0.00021597,2]
[378485718,1754884242950,-1091.89,0.00021597,2]
[378485721,1754884242959,-1175.19,0.00021597,2]
[378485724,1754884242969,-2682.36,0.00021597,2]
[378485727,1754884242979,-460.0,0.00021597,2]
[378485729,1754884242988,-460.0,0.00021597,2]
[378485732,1754884242998,-571.72,0.00021597,2]
[378485735,1754884243008,-592.54,0.00021597,2]
[378485738,1754884243017,-460.0,0.00021597,2]
[378485740,1754884243027,-2876.63,0.00021597,2]
[378485743,1754884243036,-460.0,0.00021597,2]
[378485745,1754884243046,-460.0,0.00021597,2]
[378485747,1754884243056,-838.66,0.00021597,2]
[378485750,1754884243066,-460.0,0.00021597,2]
[378485754,1754884243075,-460.0,0.00021597,2]
[378485757,1754884243085,-2273.65,0.00021597,2]
[378485759,1754884243095,-760.55,0.00021597,2]
[378485761,1754884243105,-460.0,0.00021597,2]
[378485763,1754884243115,-2921.65,0.00021597,2]
[378485765,1754884243126,-702.24,0.00021597,2]
[378485767,1754884243135,-460.0,0.00021597,2]
[378485769,1754884243145,-460.0,0.00021597,2]
[378485771,1754884243155,-460.0,0.00021597,2]
[378485773,1754884243165,-460.0,0.00021597,2]
[378485775,1754884243174,-779.19,0.00021597,2]
[378485777,1754884243183,-460.0,0.00021597,2]
[378485779,1754884243193,-460.0,0.00021597,2]
[378485781,1754884243202,-1407.45,0.00021597,2]
[378485783,1754884243212,-539.32,0.00021597,2]
[378485785,1754884243222,-460.0,0.00021597,2]
[378485787,1754884243231,-460.0,0.00021597,2]
[378485789,1754884243241,-627.35,0.00021597,2]
[378485791,1754884243251,-460.0,0.00021597,2]
[378485793,1754884243262,-460.0,0.00021597,2]
[378485795,1754884243271,-460.0,0.00021597,2]
[378485797,1754884243282,-151.0,0.00021598,2]
[378485799,1754884243291,-500.0,0.00021598,2]
[378485801,1754884243301,-500.0,0.00021598,2]
[378485803,1754884243311,-500.0,0.00021598,2]
[378485805,1754884243321,-297.66112232,0.00021598,2]
[378485807,1754884243332,-2015.72,0.00021598,2]
[378485809,1754884243342,-1893.28,0.00021598,2]
[378485811,1754884243351,-1250.19,0.00021598,2]
[378485813,1754884243361,-1213.34,0.00021598,2]
[378485815,1754884243370,-460.0,0.00021598,2]
[378485817,1754884243380,-460.0,0.00021598,2]
[378485819,1754884243389,-2298.91,0.00021598,2]
[378485821,1754884243399,-681.91,0.00021598,2]
[378485823,1754884243409,-2224.76,0.00021598,2]
[378485825,1754884243418,-1568.72,0.00021598,2]
[378485827,1754884243428,-717.01,0.00021598,2]
[378485829,1754884243437,-151.0,0.000216,4]